bitfinex/quotes_BTCUSD_20240817
["timestamp","ask_amount","ask_price","bid_price","bid_amount"]
[1723930716536,1.65839375,59351.0,59350.0,0.0009064]
[1723930716741,1.65639375,59351.0,59350.0,0.0009064]
[1723930716972,1.73019375,59351.0,59350.0,0.0009064]
[1723930717182,1.73219375,59351.0,59350.0,0.0009064]
[1723930717599,1.73419375,59351.0,59350.0,0.0009064]
[1723930717804,1.73019375,59351.0,59350.0,0.0009064]
[1723930718007,1.73219375,59351.0,59350.0,0.0009064]
[1723930718228,1.73019375,59351.0,59350.0,0.0009064]
[1723930719071,1.73219375,59351.0,59350.0,0.0009064]
[1723930719494,1.73419375,59351.0,59350.0,0.0009064]
[1723930719700,1.73019375,59351.0,59350.0,0.0009064]
[1723930720994,1.73219375,59351.0,59350.0,0.0009064]
[1723930722102,1.73419375,59351.0,59350.0,0.0009064]
[1723930722312,1.73019375,59351.0,59350.0,0.0009064]
[1723930722764,1.73419375,59351.0,59350.0,0.0009064]
[1723930722975,1.73219375,59351.0,59350.0,0.0009064]
[1723930723377,1.73419375,59351.0,59350.0,0.0009064]
[1723930723583,1.76063653,59351.0,59350.0,0.0009064]
[1723930725218,1.93833653,59351.0,59350.0,0.0009064]
[1723930725446,1.76063653,59351.0,59350.0,0.0009064]
[1723930727160,1.58908199,59351.0,59350.0,0.0009064]
[1723930728399,1.51328199,59351.0,59350.0,0.0009064]
[1723930728626,1.50928199,59351.0,59350.0,0.0610064]
[1723930728837,1.51028199,59351.0,59350.0,0.0610064]
[1723930729041,1.50928199,59351.0,59350.0,0.0610064]
[1723930729561,1.51028199,59351.0,59350.0,0.0610064]
[1723930731949,1.50928199,59351.0,59350.0,0.0610064]
[1723930733465,1.51028199,59351.0,59350.0,0.0610064]
[1723930734425,1.50928199,59351.0,59350.0,0.0610064]
[1723930735671,1.51028199,59351.0,59350.0,0.0610064]
[1723930735916,1.50928199,59351.0,59350.0,0.0610064]
[1723930738829,1.51028199,59351.0,59350.0,0.0610064]
[1723930739603,1.50928199,59351.0,59350.0,0.0610064]
[1723930740712,1.51028199,59351.0,59350.0,0.0610064]
[1723930740913,1.50928199,59351.0,59350.0,0.0610064]
[1723930744207,1.51028199,59351.0,59350.0,0.0610064]
[1723930744816,1.51028199,59351.0,59350.0,0.1424064]
[1723930745119,1.50928199,59351.0,59350.0,0.1424064]
[1723930745528,1.68698199,59351.0,59350.0,0.1424064]
[1723930745700,1.50928199,59351.0,59350.0,0.1424064]
[1723930746229,1.67921895,59351.0,59350.0,0.1424064]
[1723930746366,1.50928199,59351.0,59350.0,0.1424064]
[1723930748022,1.50828199,59351.0,59350.0,0.1424064]
[1723930748422,1.67821467,59351.0,59350.0,0.1424064]
[1723930748736,1.65521467,59351.0,59350.0,0.1424064]
[1723930750895,1.48528199,59351.0,59350.0,0.1424064]
[1723930751100,1.65521199,59351.0,59350.0,0.1424064]
[1723930753703,1.62876921,59351.0,59350.0,0.1424064]
[1723930756529,1.10158156,59351.0,59350.0,0.1424064]
[1723930756658,1.19608156,59351.0,59350.0,0.1424064]
[1723930757383,1.34711872,59351.0,59350.0,0.1424064]
[1723930758152,0.72505097,59351.0,59350.0,0.1424064]
[1723930759179,0.85085233,59351.0,59350.0,0.1424064]
[1723930759460,0.34538633,59351.0,59350.0,0.1424064]
[1723930760294,0.18519,59351.0,59350.0,0.1424064]
[1723930761189,0.15942569,59351.0,59350.0,0.1424064]
[1723930761392,0.058824,59351.0,59350.0,0.1424064]
[1723930761594,0.13427894,59351.0,59350.0,0.1424064]
[1723930762208,0.26064494,59351.0,59350.0,0.1424064]
[1723930763496,0.18519,59351.0,59350.0,0.1424064]
[1723930765052,0.058824,59351.0,59350.0,0.5215114]
[1723930765266,0.028824,59351.0,59350.0,0.7742484]
[1723930765492,0.028824,59351.0,59350.0,0.5215114]
[1723930765920,0.028824,59351.0,59350.0,0.7742484]
[1723930766323,0.00826,59352.0,59351.0,0.693032]
[1723930766587,0.00826,59352.0,59351.0,0.768832]
[1723930767849,0.01326,59352.0,59351.0,1.19311954]
[1723930768073,0.00826,59358.0,59357.0,0.379062]
[1723930768382,0.00826,59358.0,59357.0,0.86327]
[1723930768907,0.00826,59358.0,59357.0,1.03482454]
[1723930770266,0.02726,59358.0,59357.0,1.28853254]
[1723930770768,0.02726,59358.0,59357.0,1.28753254]
[1723930770975,0.01626,59358.0,59357.0,1.29153254]
[1723930771736,0.01626,59358.0,59357.0,1.29553254]
[1723930773841,0.00826,59358.0,59357.0,1.28753254]
[1723930774278,0.01026,59358.0,59357.0,1.29453254]
[1723930779710,0.01026,59358.0,59357.0,1.39453254]
[1723930787971,0.01026,59358.0,59357.0,0.94732454]
[1723930788207,0.136611,59358.0,59357.0,0.007]
[1723930788333,0.231111,59358.0,59357.0,0.007]
[1723930788535,0.814317,59358.0,59357.0,0.007]
[1723930788977,1.06702,59358.0,59357.0,0.007]
[1723930789355,1.06602,59358.0,59357.0,0.007]
[1723930789824,1.07102,59358.0,59357.0,0.007]
[1723930790228,1.06602,59358.0,59357.0,0.007]
[1723930790703,1.06602,59358.0,59352.0,0.0009064]
[1723930790704,0.409087,59353.0,59352.0,0.0009064]
[1723930792136,0.409087,59353.0,59352.0,0.0019064]
[1723930793142,0.553587,59353.0,59352.0,0.0019064]
[1723930793699,0.806312,59353.0,59352.0,0.0019064]
[1723930797339,0.806312,59353.0,59352.0,0.0009064]
[1723930797917,1.064037,59353.0,59352.0,0.0009064]
[1723930798321,1.071037,59353.0,59352.0,0.0009064]
[1723930798521,1.076037,59353.0,59352.0,0.0009064]
[1723930799513,1.069037,59353.0,59352.0,0.0009064]
[1723930799916,1.076037,59353.0,59352.0,0.0009064]
[1723930800401,1.46232941,59353.0,59352.0,0.0009064]
[1723930800549,1.45232941,59353.0,59352.0,0.0009064]
[1723930800751,1.55932941,59353.0,59352.0,0.0009064]
[1723930800953,1.56432941,59353.0,59352.0,0.0009064]
[1723930801152,1.44027571,59353.0,59352.0,0.0009064]
[1723930801358,1.47596995,59353.0,59352.0,0.0009064]
[1723930801536,1.48696995,59353.0,59352.0,0.0009064]
[1723930801737,1.48596995,59353.0,59352.0,0.0009064]
[1723930801953,1.48396995,59353.0,59352.0,0.0009064]
[1723930802151,1.48596995,59353.0,59352.0,0.0009064]
[1723930802376,1.49096995,59353.0,59352.0,0.0019064]
[1723930802556,1.65001972,59353.0,59352.0,0.0019064]
[1723930802785,1.64801972,59353.0,59352.0,0.0019064]
[1723930803239,1.66201972,59353.0,59352.0,0.0019064]
[1723930803675,1.63501972,59353.0,59352.0,0.0009064]
[1723930804077,1.66301972,59353.0,59352.0,0.0019064]
[1723930804774,1.65901972,59353.0,59352.0,0.0019064]
[1723930805007,1.66101972,59353.0,59352.0,0.0019064]
[1723930807396,1.66301972,59353.0,59352.0,0.0019064]
[1723930807620,1.65901972,59353.0,59352.0,0.0019064]
[1723930808324,1.66101972,59353.0,59352.0,0.0019064]
[1723930808783,1.65901972,59353.0,59352.0,0.0019064]
[1723930809963,1.49996995,59353.0,59352.0,0.0019064]
[1723930810443,1.46427571,59353.0,59352.0,0.0019064]
[1723930812605,1.53939782,59353.0,59352.0,0.0019064]
[1723930812852,1.53839782,59353.0,59352.0,0.0019064]
[1723930816655,1.46327571,59353.0,59352.0,0.0019064]
[1723930817401,1.46427571,59353.0,59352.0,0.0019064]
[1723930818931,1.14675071,59353.0,59352.0,0.0019064]
[1723930819170,1.24125071,59353.0,59352.0,0.0019064]
[1723930819383,1.16055071,59353.0,59352.0,0.0019064]
[1723930823335,0.96687471,59353.0,59352.0,0.0019064]
[1723930823544,1.06137471,59353.0,59352.0,0.0789064]
[1723930823752,1.06137471,59353.0,59352.0,0.1442064]
[1723930827116,0.690636,59353.0,59352.0,0.1442064]
[1723930827339,0.785136,59353.0,59352.0,0.1442064]
[1723930828828,0.532411,59353.0,59352.0,0.1442064]
[1723930830696,0.185186,59353.0,59352.0,0.1442064]
[1723930830904,0.185186,59353.0,59352.0,0.1432064]
[1723930830905,0.171186,59353.0,59352.0,0.1432064]
[1723930831109,0.178186,59353.0,59352.0,0.1432064]
[1723930831973,0.164186,59353.0,59352.0,0.1432064]
[1723930832404,0.037824,59353.0,59352.0,0.1432064]
[1723930832612,0.046824,59353.0,59352.0,0.1432064]
[1723930833447,0.039824,59353.0,59352.0,0.1432064]
[1723930833675,0.009824,59353.0,59352.0,0.5222994]
[1723930834092,0.014824,59353.0,59352.0,0.5222994]
[1723930834309,0.005824,59353.0,59352.0,0.5222994]
[1723930834717,0.000824,59353.0,59352.0,0.5222994]
[1723930835157,0.002824,59353.0,59352.0,0.5222994]
[1723930835361,0.000824,59353.0,59352.0,0.5222994]
[1723930835784,0.006824,59353.0,59352.0,0.5222994]
[1723930836241,0.000824,59353.0,59352.0,0.5222994]
[1723930836683,0.003824,59353.0,59352.0,0.5222994]
[1723930836893,0.004824,59353.0,59352.0,0.5222994]
[1723930837103,0.004824,59353.0,59352.0,0.7750284]
[1723930838217,0.004824,59353.0,59352.0,1.19931194]
[1723930838625,0.004824,59353.0,59352.0,0.94658294]
[1723930840438,0.004824,59353.0,59352.0,1.19931194]
[1723930840644,0.004824,59353.0,59352.0,0.94658294]
[1723930844328,0.004824,59353.0,59352.0,1.19931194]
[1723930844543,0.000824,59353.0,59352.0,1.19931194]
[1723930844959,0.001824,59353.0,59352.0,1.20431194]
[1723930846034,0.002824,59353.0,59352.0,1.20431194]
[1723930846245,0.002824,59353.0,59352.0,1.30431194]
[1723930846459,0.001824,59353.0,59352.0,1.30431194]
[1723930846721,0.000824,59353.0,59352.0,1.29931194]
[1723930846929,0.002824,59353.0,59352.0,1.32831194]
[1723930847357,0.001824,59353.0,59352.0,1.32331194]
[1723930847569,0.002824,59353.0,59352.0,1.32831194]
[1723930847773,0.003824,59353.0,59352.0,1.32831194]
[1723930855157,0.003824,59353.0,59352.0,1.33031194]
[1723930856037,0.003824,59353.0,59352.0,1.33231194]
[1723930858225,0.003824,59353.0,59352.0,1.58504094]
[1723930858432,0.003824,59353.0,59352.0,1.33231194]
[1723930859054,0.003824,59353.0,59352.0,1.58504094]
[1723930859255,0.003824,59353.0,59352.0,1.33231194]
[1723930859464,0.003824,59353.0,59352.0,1.58504094]
[1723930859904,0.003824,59353.0,59352.0,1.32831194]
[1723930860112,0.003824,59353.0,59352.0,1.58104094]
[1723930873985,0.003824,59353.0,59352.0,1.58304094]
[1723930874410,0.003824,59353.0,59352.0,1.58504094]
[1723930874625,0.003824,59353.0,59352.0,1.58104094]
[1723930874830,0.003824,59353.0,59352.0,1.58304094]
[1723930876114,0.003824,59353.0,59352.0,1.58104094]
[1723930876332,0.003824,59353.0,59352.0,1.58304094]
[1723930876546,0.003824,59353.0,59352.0,1.58104094]
[1723930879504,0.003824,59353.0,59352.0,1.63146885]
[1723930881341,0.003824,59353.0,59352.0,1.58104094]
[1723930881793,0.003824,59353.0,59352.0,1.63149339]
[1723930882500,0.003824,59353.0,59352.0,1.58104094]
[1723930883500,0.003824,59353.0,59352.0,2.0305173]
[1723930884915,0.003824,59353.0,59352.0,2.1250173]
[1723930885624,0.003824,59353.0,59352.0,2.04930712]
[1723930886518,0.003824,59353.0,59352.0,2.15025403]
[1723930888502,0.003824,59353.0,59352.0,2.17549075]
[1723930889176,0.003824,59353.0,59352.0,2.17949075]
[1723930889633,0.003824,59353.0,59352.0,2.17964386]
[1723930890509,0.003824,59353.0,59352.0,2.05330712]
[1723930891591,0.003824,59353.0,59352.0,2.17767707]
[1723930892252,0.003824,59353.0,59352.0,2.05130712]
[1723930892690,0.003824,59353.0,59352.0,2.05130895]
[1723930894216,0.003824,59353.0,59352.0,2.05330895]
[1723930894432,0.003824,59353.0,59352.0,2.04930895]
[1723930895088,0.003824,59353.0,59352.0,2.05130895]
[1723930897305,0.003824,59353.0,59352.0,2.05131003]
[1723930897513,0.003824,59353.0,59352.0,2.04931003]
[1723930897720,0.003824,59353.0,59352.0,2.05131003]
[1723930898405,0.003824,59353.0,59352.0,2.05331003]
[1723930899971,0.003824,59353.0,59352.0,2.23101003]
[1723930900182,0.003824,59353.0,59352.0,2.05331003]
[1723930900393,0.003824,59353.0,59352.0,2.04931003]
[1723930900609,0.084724,59353.0,59352.0,1.66322626]
[1723930900823,0.084724,59353.0,59352.0,1.75772626]
[1723930901070,0.084724,59353.0,59352.0,1.63128103]
[1723930901292,0.084724,59353.0,59352.0,1.63028103]
[1723930902003,0.084724,59353.0,59352.0,1.75444661]
[1723930902217,0.084724,59353.0,59352.0,1.70615659]
[1723930902682,0.084724,59353.0,59352.0,1.45342759]
[1723930902899,0.271986,59353.0,59352.0,0.17746094]
[1723930903125,0.524711,59353.0,59352.0,0.0059064]
[1723930903986,0.522711,59353.0,59352.0,0.0009064]
[1723930904624,0.521711,59353.0,59352.0,0.0009064]
[1723930904831,0.522711,59353.0,59352.0,0.0009064]
[1723930905469,0.523711,59353.0,59352.0,0.0049064]
[1723930908626,0.776436,59353.0,59352.0,0.0049064]
[1723930909279,1.029161,59353.0,59352.0,0.0049064]
[1723930910168,1.028161,59353.0,59352.0,0.0009064]
[1723930910813,1.027161,59353.0,59352.0,0.0009064]
[1723930911024,1.029161,59353.0,59352.0,0.0009064]
[1723930911895,0.776436,59353.0,59352.0,0.0009064]
[1723930914995,0.774436,59353.0,59352.0,0.0009064]
[1723930915213,0.777436,59353.0,59352.0,0.0009064]
[1723930916299,0.778436,59353.0,59352.0,0.0009064]
[1723930918944,0.77828898,59353.0,59352.0,0.0009064]
[1723930921373,0.77528898,59353.0,59352.0,0.0009064]
[1723930921855,0.77728898,59353.0,59352.0,0.0009064]
[1723930922068,0.77628898,59353.0,59352.0,0.0009064]
[1723930926306,0.77428898,59353.0,59352.0,0.0009064]
[1723930926515,0.77528898,59353.0,59352.0,0.0029064]
[1723930939706,0.63348898,59353.0,59352.0,0.0029064]
[1723930947321,0.68373081,59353.0,59352.0,0.0029064]
[1723930948388,0.70885173,59353.0,59352.0,0.0029064]
[1723930949458,0.68378441,59353.0,59352.0,0.0029064]
[1723930949684,0.70885173,59353.0,59352.0,0.0029064]
[1723930950783,0.70893145,59353.0,59352.0,0.0029064]
[1723930951590,0.63348898,59353.0,59352.0,0.0029064]
[1723930951852,0.70893145,59353.0,59352.0,0.0029064]
[1723930952062,0.68378574,59353.0,59352.0,0.0029064]
[1723930952268,0.63348898,59353.0,59352.0,0.0029064]
[1723930952493,0.68378623,59353.0,59352.0,0.0029064]
[1723930952701,0.70893145,59353.0,59352.0,0.0029064]
[1723930952909,0.70867658,59353.0,59352.0,0.0029064]
[1723930953556,0.63323411,59353.0,59352.0,0.0029064]
[1723930954195,0.68352291,59353.0,59352.0,0.0029064]
[1723930954434,0.63323411,59353.0,59352.0,0.0029064]
[1723930954643,0.68352676,59353.0,59352.0,0.0029064]
[1723930955270,0.70867658,59353.0,59352.0,0.0029064]
[1723930955476,0.70867369,59353.0,59352.0,0.0029064]
[1723930955697,0.63323411,59353.0,59352.0,0.0029064]
[1723930955904,0.68352838,59353.0,59352.0,0.0029064]
[1723930956107,0.63323411,59353.0,59352.0,0.0029064]
[1723930956538,0.68352838,59353.0,59352.0,0.0029064]
[1723930957786,0.68353176,59353.0,59352.0,0.0029064]
[1723930957989,0.63323411,59353.0,59352.0,0.0029064]
[1723930958429,0.68353291,59353.0,59352.0,0.0029064]
[1723930958644,0.68253291,59353.0,59352.0,0.0029064]
[1723930958856,0.68553291,59353.0,59352.0,0.0009064]
[1723930959271,0.68653291,59353.0,59352.0,0.0009064]
[1723930959527,0.68353291,59353.0,59352.0,0.0009064]
[1723930959733,0.64023411,59353.0,59352.0,0.0009064]
[1723930960570,0.71568157,59353.0,59352.0,0.0009064]
[1723930960986,0.69053541,59353.0,59352.0,0.0009064]
[1723930962021,0.69053541,59353.0,59352.0,0.0641064]
[1723930964548,0.64023411,59353.0,59352.0,0.0641064]
[1723930964962,0.69051614,59353.0,59352.0,0.0641064]
[1723930965087,0.6905157,59353.0,59352.0,0.0641064]
[1723930965938,0.64023411,59353.0,59352.0,0.0641064]
[1723930967443,0.6905157,59353.0,59352.0,0.0641064]
[1723930968446,0.00842211,59353.0,59352.0,0.2735704]
[1723930968651,0.00842211,59353.0,59352.0,0.5262994]
[1723930968851,0.00842211,59353.0,59352.0,0.95058294]
[1723930969635,0.00342211,59353.0,59352.0,0.95058294]
[1723930970222,0.00842211,59353.0,59352.0,0.95058294]
[1723930970420,0.00842211,59353.0,59352.0,1.29781194]
[1723930970941,0.00542211,59353.0,59352.0,1.29781194]
[1723930971775,0.00042211,59353.0,59352.0,1.30181194]
[1723930972177,0.00142211,59353.0,59352.0,1.30181194]
[1723930972550,0.00042211,59353.0,59352.0,1.30181194]
[1723930972754,0.00042211,59353.0,59352.0,1.30281194]
[1723930976833,0.00632331,59353.0,59352.0,1.30281194]
[1723930978387,0.00632347,59353.0,59352.0,1.30281194]
[1723930979014,0.00632347,59353.0,59352.0,1.67954094]
[1723930979222,0.00632347,59353.0,59352.0,1.67454094]
[1723930979836,0.00042211,59353.0,59352.0,1.67454094]
[1723930980693,0.00142211,59353.0,59352.0,1.93826994]
[1723930980891,0.00042211,59353.0,59352.0,2.38090065]
[1723930981126,0.00142211,59353.0,59352.0,2.43946498]
[1723930981329,0.00242211,59353.0,59352.0,2.4150474]
[1723930981534,0.00242211,59353.0,59352.0,2.40703181]
[1723930981738,0.00342211,59353.0,59352.0,2.31403858]
[1723930981950,0.00242211,59353.0,59352.0,2.31303858]
[1723930982565,0.00242211,59353.0,59352.0,2.4139846]
[1723930982815,0.00342211,59353.0,59352.0,2.31503858]
[1723930983261,0.00342211,59353.0,59352.0,2.32521046]
[1723930983466,0.00342211,59353.0,59352.0,2.45991768]
[1723930983673,0.00342211,59353.0,59352.0,2.45987768]
[1723930984087,0.00142211,59353.0,59352.0,2.45187768]
[1723930984325,0.00142211,59353.0,59352.0,2.35697563]
[1723930984533,0.00142211,59353.0,59352.0,2.36297563]
[1723930984534,0.00242211,59353.0,59352.0,2.36297563]
[1723930985003,0.00242211,59353.0,59352.0,2.35697563]
[1723930985430,0.00342211,59353.0,59352.0,2.44660226]
[1723930985635,0.00142211,59353.0,59352.0,2.43860226]
[1723930985847,0.00042211,59353.0,59352.0,2.42460226]
[1723930986061,0.00042211,59353.0,59352.0,2.42459873]
[1723930986269,0.00142211,59353.0,59352.0,2.3629721]
[1723930986478,0.00142211,59353.0,59352.0,1.98922182]
[1723930987109,0.00826,59362.0,59361.0,1.115918]
[1723930987339,0.00826,59362.0,59361.0,1.41047254]
[1723930987543,0.00826,59362.0,59361.0,1.66316354]
[1723930987960,0.00826,59362.0,59361.0,1.67142354]
[1723930988568,0.01026,59362.0,59361.0,1.69942354]
[1723930989208,0.01026,59362.0,59361.0,1.70142354]
[1723930989411,0.00926,59362.0,59361.0,1.68542354]
[1723930989788,0.01026,59362.0,59361.0,1.69942354]
[1723930990054,0.00926,59362.0,59361.0,1.68542354]
[1723930990261,0.01026,59362.0,59361.0,1.70142354]
[1723930990492,0.01026,59362.0,59361.0,1.96428363]
[1723930991132,0.01026,59362.0,59361.0,1.96228363]
[1723930992869,0.01026,59362.0,59361.0,1.96428363]
[1723930993797,0.01026,59362.0,59361.0,1.96628363]
[1723930994378,0.000824,59371.0,59366.0,0.003]
[1723930994584,0.000824,59371.0,59366.0,0.81242511]
[1723930994788,0.000824,59371.0,59366.0,1.41776311]
[1723930994999,0.000824,59371.0,59366.0,1.92310111]
[1723930995193,0.000824,59371.0,59366.0,2.17577011]
[1723930995652,0.000824,59371.0,59366.0,2.18977011]
[1723930995979,0.00141852,59367.0,59366.0,2.18640254]
[1723930996360,0.00141852,59367.0,59366.0,2.20040254]
[1723931001288,0.00141852,59367.0,59366.0,2.69993574]
[1723931006214,1e-08,59367.0,59366.0,2.69993574]
[1723931008762,1e-08,59367.0,59366.0,2.57403662]
[1723931010270,1e-08,59367.0,59366.0,2.25068515]
[1723931011316,1e-08,59367.0,59366.0,2.20040254]
[1723931011950,0.00082401,59367.0,59366.0,2.20040254]
[1723931012152,0.000824,59371.0,59370.0,1.571566]
[1723931012364,0.000824,59371.0,59370.0,1.96062054]
[1723931012571,0.000824,59371.0,59370.0,2.02284171]
[1723931012775,0.000824,59371.0,59370.0,2.27549371]
[1723931012976,0.000824,59371.0,59370.0,2.28375371]
[1723931013580,0.000824,59371.0,59370.0,2.29775371]
[1723931014269,0.00826,59377.0,59376.0,1.744055]
[1723931014477,0.00826,59377.0,59376.0,2.21310954]
[1723931014871,0.00826,59377.0,59376.0,2.22136954]
[1723931016038,0.00826,59377.0,59376.0,2.24936954]
[1723931017964,0.00824,59390.0,59385.0,0.270494]
[1723931018200,0.00824,59390.0,59385.0,0.91550451]
[1723931018344,0.00824,59390.0,59385.0,1.67327151]
[1723931018733,0.00824,59390.0,59385.0,1.92249354]
[1723931019311,0.00824,59390.0,59385.0,1.93649354]
[1723931019960,0.00824,59390.0,59385.0,1.68390454]
[1723931020590,0.00824,59390.0,59385.0,1.69387138]
[1723931021182,0.00824,59390.0,59385.0,1.70787138]
[1723931021413,0.00824,59390.0,59387.0,1.13761]
[1723931021589,0.00824,59390.0,59387.0,1.33216454]
[1723931021904,0.00824,59390.0,59387.0,1.43216454]
[1723931023070,0.00824,59390.0,59387.0,1.44616454]
[1723931023398,0.00824,59390.0,59387.0,1.59006454]
[1723931023603,0.00824,59390.0,59387.0,1.60806454]
[1723931025345,0.00824,59390.0,59387.0,1.52886454]
[1723931027015,0.00824,59390.0,59387.0,1.60806454]
[1723931027233,0.00824,59390.0,59387.0,1.52886454]
[1723931027867,0.00824,59390.0,59387.0,1.45916454]
[1723931027868,0.5425,59388.0,59387.0,1.45916454]
[1723931028517,0.4773,59388.0,59387.0,1.20658454]
[1723931028729,0.4773,59388.0,59387.0,1.30108454]
[1723931030060,0.4773,59388.0,59387.0,1.27808454]
[1723931030493,0.4,59388.0,59387.0,1.27808454]
[1723931030925,0.4773,59388.0,59387.0,1.27808454]
[1723931033858,0.5425,59388.0,59387.0,1.27808454]
[1723931034352,0.4,59388.0,59387.0,1.27808454]
[1723931034555,0.4,59388.0,59387.0,1.30108454]
[1723931036110,0.400824,59388.0,59387.0,1.55366454]
[1723931036661,0.400824,59388.0,59387.0,1.30108454]
[1723931038254,0.400824,59388.0,59387.0,1.55366454]
[1723931038704,0.400824,59388.0,59387.0,1.30108454]
[1723931038853,0.400824,59388.0,59387.0,1.55366454]
[1723931039056,0.400824,59388.0,59387.0,1.30108454]
[1723931040068,0.400824,59388.0,59387.0,1.27808454]
[1723931040596,0.000824,59388.0,59387.0,1.27808454]
[1723931042272,0.000824,59388.0,59387.0,1.18358454]
[1723931042483,0.138424,59388.0,59387.0,1.27808454]
[1723931042882,0.077424,59388.0,59387.0,1.27808454]
[1723931043079,0.000824,59388.0,59387.0,1.27808454]
[1723931043365,0.000824,59388.0,59387.0,1.26408454]
[1723931043614,0.000824,59388.0,59387.0,1.27708454]
[1723931044226,0.000824,59388.0,59387.0,1.26408454]
[1723931044398,0.000824,59388.0,59387.0,1.25008454]
[1723931044765,0.000824,59388.0,59387.0,1.26408454]
[1723931045118,0.000824,59388.0,59387.0,1.16958454]
[1723931045332,0.000824,59388.0,59387.0,1.27808454]
[1723931045688,0.000824,59388.0,59387.0,1.29008454]
[1723931047814,0.000824,59388.0,59387.0,1.34056107]
[1723931050442,0.000824,59388.0,59387.0,1.29008454]
[1723931050652,0.000824,59388.0,59387.0,1.66365014]
[1723931050854,0.000824,59388.0,59387.0,1.76462752]
[1723931051055,0.000824,59388.0,59387.0,1.66365014]
[1723931051466,0.000824,59388.0,59387.0,1.72745014]
[1723931051895,0.000824,59388.0,59387.0,1.82842833]
[1723931052335,0.000824,59388.0,59387.0,1.72743872]
[1723931053056,0.000824,59388.0,59387.0,1.82841692]
[1723931053272,0.000824,59388.0,59387.0,1.82841753]
[1723931053466,0.000824,59388.0,59387.0,1.82841731]
[1723931053688,0.000824,59388.0,59387.0,1.82841783]
[1723931053897,0.000824,59388.0,59387.0,1.72743872]
[1723931054131,0.000824,59388.0,59387.0,1.82841837]
[1723931054336,0.000824,59388.0,59387.0,1.72743872]
[1723931054540,0.000824,59388.0,59387.0,1.82841836]
[1723931054743,0.000824,59388.0,59387.0,1.72743872]
[1723931054957,0.000824,59388.0,59387.0,2.07961872]
[1723931055743,0.000824,59388.0,59387.0,2.20584044]
[1723931055941,0.000824,59388.0,59387.0,2.18060609]
[1723931056151,0.000824,59388.0,59387.0,1.93921872]
[1723931056350,0.000824,59388.0,59387.0,1.81286044]
[1723931056555,0.000824,59388.0,59387.0,1.68663872]
[1723931056981,0.000824,59388.0,59387.0,1.93921872]
[1723931057180,0.000824,59388.0,59387.0,2.06544044]
[1723931057582,0.000824,59388.0,59387.0,2.06548208]
[1723931058727,0.000824,59388.0,59387.0,1.56566454]
[1723931059428,0.000824,59388.0,59387.0,1.56666454]
[1723931059638,0.000824,59388.0,59387.0,1.64326454]
[1723931059930,0.000824,59388.0,59387.0,2.08062128]
[1723931060716,0.00041866,59388.0,59387.0,2.08062128]
[1723931062732,0.00041866,59388.0,59387.0,1.70706454]
[1723931065745,0.00041866,59388.0,59387.0,1.95964454]
[1723931065967,0.00041866,59388.0,59387.0,1.70706454]
[1723931066290,0.00041866,59388.0,59387.0,1.95964454]
[1723931072170,0.00041866,59388.0,59387.0,1.96055094]
[1723931072370,0.00041866,59388.0,59387.0,2.33409903]
[1723931074294,0.00041866,59388.0,59387.0,2.08151903]
[1723931076011,0.00041866,59388.0,59387.0,2.08051903]
[1723931077801,0.07741866,59388.0,59387.0,1.94011903]
[1723931078002,0.00041866,59388.0,59387.0,2.06642941]
[1723931079005,0.00041866,59388.0,59387.0,1.94011903]
[1723931082380,0.00041866,59388.0,59387.0,2.07831903]
[1723931083154,0.00041866,59388.0,59387.0,1.94011903]
[1723931085180,0.14111866,59388.0,59387.0,1.94011903]
[1723931085608,0.07581866,59388.0,59387.0,1.94011903]
[1723931086430,0.00041866,59388.0,59387.0,1.94011903]
[1723931088172,0.00041866,59388.0,59387.0,1.94012798]
[1723931090537,0.00041866,59388.0,59387.0,1.94112798]
[1723931090739,0.00041866,59388.0,59387.0,1.94012798]
[1723931091508,0.00041866,59388.0,59387.0,2.00512798]
[1723931091730,0.00041866,59388.0,59387.0,2.00612798]
[1723931092350,0.00041866,59388.0,59387.0,2.08452798]
[1723931092985,0.00041866,59388.0,59387.0,2.08452085]
[1723931093396,0.00041866,59388.0,59387.0,2.23518258]
[1723931093871,0.00041866,59388.0,59387.0,2.23618258]
[1723931096457,0.00041866,59388.0,59387.0,2.08352085]
[1723931097636,0.00041866,59388.0,59387.0,1.9401223]
[1723931097841,0.08181866,59388.0,59387.0,1.9401223]
[1723931098123,0.08181866,59388.0,59387.0,1.8456223]
[1723931098324,0.08181866,59388.0,59387.0,1.9401223]
[1723931098552,0.08181866,59388.0,59387.0,2.09184894]
[1723931100998,0.08181866,59388.0,59387.0,1.56657094]
[1723931101204,0.08181866,59388.0,59387.0,2.09185405]
[1723931102553,0.08181866,59388.0,59387.0,2.09285405]
[1723931104885,0.08181866,59388.0,59387.0,2.09185405]
[1723931105093,0.08181866,59388.0,59387.0,2.09285405]
[1723931105645,0.08181866,59388.0,59387.0,1.99835405]
[1723931105846,0.08181866,59388.0,59387.0,2.09285405]
[1723931106222,0.08181866,59388.0,59387.0,2.09185405]
[1723931107138,0.00041866,59388.0,59387.0,2.23395405]
[1723931107683,0.00041866,59388.0,59387.0,2.09185405]
[1723931107887,0.00041866,59388.0,59387.0,1.94012602]
[1723931108089,0.00041866,59388.0,59387.0,1.99735405]
[1723931108308,0.00041866,59388.0,59387.0,2.09185405]
[1723931109750,0.08435866,59388.0,59387.0,2.09185405]
[1723931119098,0.08435866,59388.0,59387.0,1.99735405]
[1723931119312,0.08435866,59388.0,59387.0,2.06885405]
[1723931120050,0.08435866,59388.0,59387.0,1.91712602]
[1723931120660,0.08435866,59388.0,59387.0,2.06885405]
[1723931121032,0.08435866,59388.0,59387.0,1.97435405]
[1723931121232,0.08435866,59388.0,59387.0,1.82262602]
[1723931121431,0.08435866,59388.0,59387.0,1.91712602]
[1723931121609,0.08435866,59388.0,59387.0,1.99822602]
[1723931122389,0.08435866,59388.0,59387.0,1.91712602]
[1723931122796,0.08435866,59388.0,59387.0,1.66454602]
[1723931123642,0.08435866,59388.0,59387.0,1.66455053]
[1723931124597,0.08435866,59388.0,59387.0,1.57005053]
[1723931124788,0.08435866,59388.0,59387.0,1.66455053]
[1723931128083,0.08435866,59388.0,59387.0,1.29099094]
[1723931128287,0.08435866,59388.0,59387.0,1.66455053]
[1723931129452,0.22285866,59388.0,59387.0,1.66455053]
[1723931129667,0.16055866,59388.0,59387.0,1.57005053]
[1723931129873,0.08435866,59388.0,59387.0,1.66455053]
[1723931132743,0.08435866,59388.0,59387.0,1.66455654]
[1723931134138,0.08435866,59388.0,59387.0,1.57005654]
[1723931134314,0.08435866,59388.0,59387.0,1.66455654]
[1723931134514,0.08435866,59388.0,59387.0,1.79100482]
[1723931136053,0.22755866,59388.0,59387.0,1.79100482]
[1723931136421,0.16555866,59388.0,59387.0,1.79100482]
[1723931136623,0.08435866,59388.0,59387.0,1.79100482]